[Event "Early-Titled-Tuesday-Blitz-October-03-2023"]
[Site "Chess.com"]
[Date "2023.10.03"]
[Round "2"]
[White "RobertoJBM"]
[Black "RichardLeyvaP"]
[Result "1/2-1/2"]
[WhiteElo "2816"]
[BlackElo "2581"]
[TimeControl "180+1"]
[EndTime "8:15:40 PDT"]
[Termination "Game drawn by repetition"]

1. d4 {[%clk 0:03:00.9]} 1... Nf6 {[%clk 0:02:59.8]} 2. Nf3 {[%clk 0:03:00.9]}
2... e6 {[%clk 0:03:00.1]} 3. e3 {[%clk 0:03:01.8]} 3... c5 {[%clk 0:02:59.6]}
4. Bd3 {[%clk 0:03:02]} 4... b6 {[%clk 0:03:00]} 5. O-O {[%clk 0:03:01.7]} 5...
Bb7 {[%clk 0:03:00.3]} 6. Qe2 {[%clk 0:03:02]} 6... Be7 {[%clk 0:02:58.1]} 7.
Nbd2 {[%clk 0:03:01.7]} 7... O-O {[%clk 0:02:55.7]} 8. c3 {[%clk 0:03:02.1]}
8... cxd4 {[%clk 0:02:53.9]} 9. exd4 {[%clk 0:03:01.9]} 9... d6 {[%clk 0:02:53]}
10. a4 {[%clk 0:03:02.1]} 10... a6 {[%clk 0:02:52.8]} 11. Nc4 {[%clk 0:03:01.3]}
11... Nbd7 {[%clk 0:02:51.8]} 12. Bf4 {[%clk 0:03:01.4]} 12... Qc7 {[%clk
0:02:51.5]} 13. h3 {[%clk 0:03:01]} 13... Rfe8 {[%clk 0:02:50.5]} 14. Bh2 {[%clk
0:03:00.8]} 14... Bf8 {[%clk 0:02:50.8]} 15. Rfe1 {[%clk 0:03:00.7]} 15... h6
{[%clk 0:02:35.8]} 16. Nfd2 {[%clk 0:02:56.2]} 16... e5 {[%clk 0:02:28]} 17.
dxe5 {[%clk 0:02:55.9]} 17... dxe5 {[%clk 0:02:28.2]} 18. Ne3 {[%clk 0:02:54.8]}
18... Nc5 {[%clk 0:02:25.9]} 19. Bc4 {[%clk 0:02:53.6]} 19... Qc6 {[%clk
0:02:17.9]} 20. b3 {[%clk 0:02:52.9]} 20... Rad8 {[%clk 0:02:13.3]} 21. Red1
{[%clk 0:02:46.7]} 21... e4 {[%clk 0:02:05.8]} 22. Ndf1 {[%clk 0:02:36.3]} 22...
Nd3 {[%clk 0:02:05.8]} 23. Bxd3 {[%clk 0:02:29.3]} 23... exd3 {[%clk 0:02:06]}
24. Rxd3 {[%clk 0:02:30.2]} 24... Rxd3 {[%clk 0:02:05.9]} 25. Qxd3 {[%clk
0:02:31.1]} 25... Rc8 {[%clk 0:02:05.8]} 26. c4 {[%clk 0:02:29]} 26... Qe6
{[%clk 0:02:05.8]} 27. Rd1 {[%clk 0:02:27.4]} 27... Bc5 {[%clk 0:02:03.1]} 28.
Nd5 {[%clk 0:02:25]} 28... Nxd5 {[%clk 0:01:53.3]} 29. cxd5 {[%clk 0:02:25.9]}
29... Qf6 {[%clk 0:01:53.2]} 30. Ne3 {[%clk 0:02:23.4]} 30... Rd8 {[%clk
0:01:51]} 31. Bg3 {[%clk 0:02:08]} 31... a5 {[%clk 0:01:50.5]} 32. d6 {[%clk
0:02:05]} 32... g6 {[%clk 0:01:45]} 33. Nc4 {[%clk 0:02:01.8]} 33... h5 {[%clk
0:01:44.3]} 34. h4 {[%clk 0:01:48.4]} 34... Rd7 {[%clk 0:01:33.7]} 35. Qd2
{[%clk 0:01:44.7]} 35... Ba6 {[%clk 0:01:29.7]} 36. Qf4 {[%clk 0:01:40.2]} 36...
Qxf4 {[%clk 0:01:28.1]} 37. Bxf4 {[%clk 0:01:40]} 37... f6 {[%clk 0:01:28.5]}
38. Be3 {[%clk 0:01:35.7]} 38... Bxc4 {[%clk 0:01:22]} 39. bxc4 {[%clk
0:01:36.6]} 39... Bxe3 {[%clk 0:01:18.7]} 40. fxe3 {[%clk 0:01:37.5]} 40... Kf7
{[%clk 0:01:19.3]} 41. Rd5 {[%clk 0:01:34.6]} 41... Ke6 {[%clk 0:01:19.5]} 42.
Rb5 {[%clk 0:01:34.4]} 42... Rxd6 {[%clk 0:01:19.1]} 43. c5 {[%clk 0:01:30.1]}
43... bxc5 {[%clk 0:01:19.5]} 44. Rxc5 {[%clk 0:01:31]} 44... Rd5 {[%clk
0:01:19.6]} 45. Rc4 {[%clk 0:01:27.9]} 45... Rd2 {[%clk 0:01:12.8]} 46. Rc5
{[%clk 0:01:22.2]} 46... Rd5 {[%clk 0:01:08.8]} 47. Rc4 {[%clk 0:01:22.3]} 47...
Rd2 {[%clk 0:00:59.1]} 48. Rc5 {[%clk 0:01:21.8]} 48... Rd5 {[%clk 0:00:59.2]}
1/2-1/2

[Event "Early-Titled-Tuesday-Blitz-October-03-2023"]
[Site "Chess.com"]
[Date "2023.10.03"]
[Round "2"]
[White "hurricane7791"]
[Black "KatakuriDono"]
[Result "1-0"]
[WhiteElo "2693"]
[BlackElo "2334"]
[TimeControl "180+1"]
[EndTime "8:15:41 PDT"]
[Termination "hurricane7791 won by resignation"]

1. d4 {[%clk 0:03:00.9]} 1... d5 {[%clk 0:02:59.8]} 2. c4 {[%clk 0:03:00.9]}
2... dxc4 {[%clk 0:03:00.7]} 3. e3 {[%clk 0:03:00.3]} 3... e5 {[%clk 0:03:00.3]}
4. Bxc4 {[%clk 0:03:00.9]} 4... exd4 {[%clk 0:03:00.6]} 5. exd4 {[%clk
0:03:01.8]} 5... Bd6 {[%clk 0:03:00.6]} 6. Nf3 {[%clk 0:03:02.1]} 6... Nf6
{[%clk 0:03:00.3]} 7. Qe2+ {[%clk 0:03:02.7]} 7... Qe7 {[%clk 0:03:00]} 8. Qxe7+
{[%clk 0:03:03.4]} 8... Bxe7 {[%clk 0:03:00.4]} 9. O-O {[%clk 0:03:01.7]} 9...
O-O {[%clk 0:03:00.2]} 10. Re1 {[%clk 0:03:01.7]} 10... Bd6 {[%clk 0:02:56.2]}
11. Nc3 {[%clk 0:02:59.7]} 11... a6 {[%clk 0:02:55.7]} 12. Bg5 {[%clk
0:02:59.8]} 12... Nbd7 {[%clk 0:02:55.2]} 13. Ne5 {[%clk 0:02:59.7]} 13... b5
{[%clk 0:02:50.1]} 14. Bb3 {[%clk 0:02:52]} 14... Bb7 {[%clk 0:02:46.7]} 15. a3
{[%clk 0:02:46.1]} 15... h6 {[%clk 0:02:34.1]} 16. Bh4 {[%clk 0:02:44.3]} 16...
c5 {[%clk 0:02:21.1]} 17. Nxd7 {[%clk 0:02:14.3]} 17... Nxd7 {[%clk 0:02:22]}
18. Be7 {[%clk 0:02:12.1]} 18... Bxe7 {[%clk 0:02:10.1]} 19. Rxe7 {[%clk
0:02:13]} 19... Rad8 {[%clk 0:01:56.3]} 20. dxc5 {[%clk 0:02:12.3]} 20... Nxc5
{[%clk 0:01:53.4]} 21. Ba2 {[%clk 0:02:12.6]} 21... Ba8 {[%clk 0:01:41.4]} 22.
h4 {[%clk 0:02:02.3]} 22... Rd2 {[%clk 0:01:39.8]} 23. Rae1 {[%clk 0:02:00.3]}
23... Rxb2 {[%clk 0:01:22.8]} 24. Rxf7 {[%clk 0:02:00.1]} 24... Rxa2 {[%clk
0:01:22]} 25. Rxf8+ {[%clk 0:01:59.8]} 25... Kxf8 {[%clk 0:01:21.9]} 26. Nxa2
{[%clk 0:02:00.5]} 26... Kf7 {[%clk 0:01:08.3]} 27. Nc3 {[%clk 0:01:58.4]} 27...
Bc6 {[%clk 0:00:57]} 28. f3 {[%clk 0:01:58.5]} 28... a5 {[%clk 0:00:54.4]} 29.
Ne2 {[%clk 0:01:52.7]} 29... Ne6 {[%clk 0:00:48.1]} 30. Rc1 {[%clk 0:01:50.2]}
30... Bd7 {[%clk 0:00:45.8]} 31. Kf2 {[%clk 0:01:50.3]} 31... Ke7 {[%clk
0:00:37.2]} 32. Ke3 {[%clk 0:01:50.4]} 32... g5 {[%clk 0:00:33.3]} 33. hxg5
{[%clk 0:01:50.2]} 33... hxg5 {[%clk 0:00:34.2]} 34. Nd4 {[%clk 0:01:50.2]}
34... Nxd4 {[%clk 0:00:33.1]} 35. Kxd4 {[%clk 0:01:50.2]} 35... Kd6 {[%clk
0:00:33.1]} 36. Rh1 {[%clk 0:01:44.1]} 36... Be6 {[%clk 0:00:31.1]} 37. Rh5
{[%clk 0:01:36.8]} 37... b4 {[%clk 0:00:31]} 38. axb4 {[%clk 0:01:36.7]} 38...
axb4 {[%clk 0:00:31.9]} 39. Rxg5 {[%clk 0:01:36.9]} 39... b3 {[%clk 0:00:32.2]}
40. Rb5 {[%clk 0:01:36.2]} 40... Kc6 {[%clk 0:00:32.7]} 41. Rb4 {[%clk
0:01:35.8]} 1-0

[Event "Early-Titled-Tuesday-Blitz-October-03-2023"]
[Site "Chess.com"]
[Date "2023.10.03"]
[Round "2"]
[White "carloseduar100"]
[Black "AbdulovOrkhan"]
[Result "0-1"]
[WhiteElo "2312"]
[BlackElo "2519"]
[TimeControl "180+1"]
[EndTime "8:15:43 PDT"]
[Termination "AbdulovOrkhan won by checkmate"]

1. e4 {[%clk 0:03:00.9]} 1... e5 {[%clk 0:02:57.3]} 2. Nf3 {[%clk 0:03:00.6]}
2... Nc6 {[%clk 0:02:57.1]} 3. Nc3 {[%clk 0:03:01.5]} 3... Nf6 {[%clk
0:02:56.7]} 4. Nxe5 {[%clk 0:03:02]} 4... Nxe5 {[%clk 0:02:53.9]} 5. d4 {[%clk
0:03:02.2]} 5... Nc6 {[%clk 0:02:46.1]} 6. d5 {[%clk 0:03:01.9]} 6... Ne7 {[%clk
0:02:23.2]} 7. e5 {[%clk 0:03:00.8]} 7... Nfxd5 {[%clk 0:02:20.9]} 8. Nxd5
{[%clk 0:03:00.1]} 8... Nxd5 {[%clk 0:02:21.8]} 9. Qxd5 {[%clk 0:03:00.7]} 9...
d6 {[%clk 0:02:22]} 10. exd6 {[%clk 0:02:21]} 10... Bxd6 {[%clk 0:02:20.3]} 11.
c3 {[%clk 0:02:20.2]} 11... O-O {[%clk 0:02:17]} 12. Be3 {[%clk 0:02:20.2]}
12... Re8 {[%clk 0:02:11]} 13. O-O-O {[%clk 0:02:19.9]} 13... Be6 {[%clk
0:02:10.5]} 14. Qxb7 {[%clk 0:02:11.7]} 14... Bxa2 {[%clk 0:02:07]} 15. Qa6
{[%clk 0:01:57.7]} 15... Bb3 {[%clk 0:02:04.4]} 16. Rd4 {[%clk 0:01:54]} 16...
Qf6 {[%clk 0:02:01.2]} 17. Bc4 {[%clk 0:01:51.2]} 17... Bxc4 {[%clk 0:01:55]}
18. Qxc4 {[%clk 0:01:52.1]} 18... a5 {[%clk 0:01:50.9]} 19. Qa4 {[%clk
0:01:46.4]} 19... Qg6 {[%clk 0:01:36.8]} 20. Rg4 {[%clk 0:01:43.4]} 20... Qf5
{[%clk 0:01:32.4]} 21. Rd1 {[%clk 0:01:35]} 21... Rab8 {[%clk 0:01:25.4]} 22.
Rg5 {[%clk 0:01:34.3]} 22... Qf6 {[%clk 0:01:22.8]} 23. Qg4 {[%clk 0:01:30.3]}
23... g6 {[%clk 0:01:18.6]} 24. Bd4 {[%clk 0:01:24.7]} 24... Bf4+ {[%clk
0:01:06.1]} 25. Be3 {[%clk 0:01:13.6]} 25... Rxe3 {[%clk 0:01:04.6]} 26. fxe3
{[%clk 0:01:04.2]} 26... Bxe3+ {[%clk 0:01:05.5]} 27. Kb1 {[%clk 0:01:04]} 27...
Qxg5 {[%clk 0:00:50.7]} 28. Qa4 {[%clk 0:00:55.7]} 28... Qxg2 {[%clk 0:00:48.6]}
29. Qxa5 {[%clk 0:00:55.8]} 29... Qxb2# {[%clk 0:00:48.5]} 0-1

[Event "Early-Titled-Tuesday-Blitz-October-03-2023"]
[Site "Chess.com"]
[Date "2023.10.03"]
[Round "2"]
[White "VSERGUEI"]
[Black "Dacean99"]
[Result "0-1"]
[WhiteElo "2701"]
[BlackElo "2535"]
[TimeControl "180+1"]
[EndTime "8:15:46 PDT"]
[Termination "Dacean99 won by checkmate"]

1. d4 {[%clk 0:03:00.9]} 1... Nf6 {[%clk 0:02:58.7]} 2. c4 {[%clk 0:03:00.5]}
2... c5 {[%clk 0:02:59]} 3. d5 {[%clk 0:03:00.1]} 3... e6 {[%clk 0:02:58.6]} 4.
Nc3 {[%clk 0:02:59.2]} 4... exd5 {[%clk 0:02:56.4]} 5. cxd5 {[%clk 0:03:00.1]}
5... d6 {[%clk 0:02:55.1]} 6. Nf3 {[%clk 0:03:00.2]} 6... Be7 {[%clk 0:02:55.6]}
7. h3 {[%clk 0:02:52.1]} 7... O-O {[%clk 0:02:55.3]} 8. e4 {[%clk 0:02:52]} 8...
Na6 {[%clk 0:02:55.4]} 9. Bf4 {[%clk 0:02:47.9]} 9... Nc7 {[%clk 0:02:54.9]} 10.
a4 {[%clk 0:02:45.9]} 10... a6 {[%clk 0:02:49.5]} 11. Bc4 {[%clk 0:02:36.5]}
11... Rb8 {[%clk 0:02:49.1]} 12. Qd3 {[%clk 0:02:28.5]} 12... b5 {[%clk
0:02:44.6]} 13. axb5 {[%clk 0:02:27.2]} 13... axb5 {[%clk 0:02:45.5]} 14. Nxb5
{[%clk 0:02:24.7]} 14... Nxb5 {[%clk 0:02:45.3]} 15. Bxb5 {[%clk 0:02:23.2]}
15... Nxe4 {[%clk 0:02:44.2]} 16. Qxe4 {[%clk 0:02:11.7]} 16... Rxb5 {[%clk
0:02:43.1]} 17. O-O {[%clk 0:02:10.5]} 17... Rxb2 {[%clk 0:02:39.7]} 18. Ra7
{[%clk 0:02:09.3]} 18... Bf6 {[%clk 0:02:34.9]} 19. Re1 {[%clk 0:02:08.3]} 19...
Rb4 {[%clk 0:02:33.8]} 20. Qe3 {[%clk 0:02:05.1]} 20... Bb7 {[%clk 0:02:31.1]}
21. Bg5 {[%clk 0:01:48.5]} 21... Bxd5 {[%clk 0:02:26.3]} 22. Bxf6 {[%clk
0:01:48]} 22... Qxf6 {[%clk 0:02:27.2]} 23. Ng5 {[%clk 0:01:43.4]} 23... h6
{[%clk 0:02:21.8]} 24. Nh7 {[%clk 0:01:24.3]} 24... Qg6 {[%clk 0:02:00.1]} 25.
Qg3 {[%clk 0:00:39.8]} 25... Qxg3 {[%clk 0:01:55.4]} 26. fxg3 {[%clk 0:00:33.2]}
26... Kxh7 {[%clk 0:01:55]} 27. Rd7 {[%clk 0:00:32.4]} 27... Rb2 {[%clk
0:01:43.4]} 28. Rxd6 {[%clk 0:00:29.6]} 28... Rxg2+ {[%clk 0:01:39.8]} 29. Kf1
{[%clk 0:00:28.5]} 29... Rd2 {[%clk 0:01:40.1]} 30. Kg1 {[%clk 0:00:25.6]} 30...
Rb8 {[%clk 0:01:35.7]} 31. Re5 {[%clk 0:00:23.6]} 31... Rb1+ {[%clk 0:01:34.7]}
32. Re1 {[%clk 0:00:12.1]} 32... Rxe1# {[%clk 0:01:35.6]} 0-1

[Event "Early-Titled-Tuesday-Blitz-October-03-2023"]
[Site "Chess.com"]
[Date "2023.10.03"]
[Round "2"]
[White "FREDERICKtheMATE"]
[Black "BJthechessgod"]
[Result "1-0"]
[WhiteElo "2604"]
[BlackElo "2353"]
[TimeControl "180+1"]
[EndTime "8:15:46 PDT"]
[Termination "FREDERICKtheMATE won by checkmate"]

1. e4 {[%clk 0:03:00.9]} 1... c5 {[%clk 0:02:58.3]} 2. Nf3 {[%clk 0:03:01.2]}
2... e6 {[%clk 0:02:58.9]} 3. c3 {[%clk 0:03:01.2]} 3... Nf6 {[%clk 0:02:58.8]}
4. e5 {[%clk 0:03:01.3]} 4... Nd5 {[%clk 0:02:59.5]} 5. Bc4 {[%clk 0:03:01.9]}
5... d6 {[%clk 0:02:46.8]} 6. d4 {[%clk 0:02:57.2]} 6... cxd4 {[%clk 0:02:46.5]}
7. cxd4 {[%clk 0:02:58.1]} 7... Be7 {[%clk 0:02:47.1]} 8. O-O {[%clk 0:02:57.6]}
8... O-O {[%clk 0:02:47.8]} 9. Re1 {[%clk 0:02:55.2]} 9... b6 {[%clk 0:02:48.2]}
10. Bxd5 {[%clk 0:02:51.8]} 10... exd5 {[%clk 0:02:48.5]} 11. Nc3 {[%clk
0:02:52.5]} 11... Bb7 {[%clk 0:02:25.8]} 12. Bf4 {[%clk 0:02:50]} 12... Na6
{[%clk 0:02:26.3]} 13. Nb5 {[%clk 0:02:41.2]} 13... dxe5 {[%clk 0:02:24.3]} 14.
Nxe5 {[%clk 0:02:42.1]} 14... Re8 {[%clk 0:01:56.8]} 15. Rc1 {[%clk 0:02:35.1]}
15... Bg5 {[%clk 0:01:42.9]} 16. Qh5 {[%clk 0:02:17.6]} 16... Rxe5 {[%clk
0:01:25.8]} 17. Bxe5 {[%clk 0:02:17.3]} 17... Bxc1 {[%clk 0:01:25.5]} 18. Rxc1
{[%clk 0:02:15.3]} 18... Rc8 {[%clk 0:01:25.7]} 19. Rxc8 {[%clk 0:02:03.5]}
19... Qxc8 {[%clk 0:01:26.6]} 20. h3 {[%clk 0:02:02.8]} 20... Nb4 {[%clk
0:00:48.9]} 21. Nd6 {[%clk 0:01:51.7]} 21... Qc1+ {[%clk 0:00:19]} 22. Kh2
{[%clk 0:01:49.6]} 22... g6 {[%clk 0:00:19.6]} 23. Qh4 {[%clk 0:01:42.8]} 23...
Nc6 {[%clk 0:00:17.9]} 24. Nxb7 {[%clk 0:01:32]} 24... Nxe5 {[%clk 0:00:17.5]}
25. dxe5 {[%clk 0:01:32.9]} 25... Qxb2 {[%clk 0:00:18]} 26. Qf6 {[%clk
0:01:25.9]} 26... Qxa2 {[%clk 0:00:13.4]} 27. Nd8 {[%clk 0:01:23.7]} 27... d4
{[%clk 0:00:13.5]} 28. e6 {[%clk 0:01:24]} 28... fxe6 {[%clk 0:00:11.3]} 29.
Qf7+ {[%clk 0:01:23.8]} 29... Kh8 {[%clk 0:00:11.7]} 30. Qf8# {[%clk 0:01:24.1]}
1-0

[Event "Early-Titled-Tuesday-Blitz-October-03-2023"]
[Site "Chess.com"]
[Date "2023.10.03"]
[Round "2"]
[White "Khromkin"]
[Black "campochess"]
[Result "1-0"]
[WhiteElo "2452"]
[BlackElo "2167"]
[TimeControl "180+1"]
[EndTime "8:15:47 PDT"]
[Termination "Khromkin won by resignation"]

1. d4 {[%clk 0:02:59]} 1... c5 {[%clk 0:02:59.6]} 2. d5 {[%clk 0:02:58]} 2...
Nf6 {[%clk 0:02:58.7]} 3. Nc3 {[%clk 0:02:58.6]} 3... g6 {[%clk 0:02:58.6]} 4.
e4 {[%clk 0:02:59.2]} 4... d6 {[%clk 0:02:58.9]} 5. f4 {[%clk 0:02:59.7]} 5...
Bg7 {[%clk 0:02:58.5]} 6. Nf3 {[%clk 0:03:00.3]} 6... a6 {[%clk 0:02:58.7]} 7.
a4 {[%clk 0:02:55.8]} 7... O-O {[%clk 0:02:55.3]} 8. Bc4 {[%clk 0:02:56.3]} 8...
Ne8 {[%clk 0:02:54.2]} 9. O-O {[%clk 0:02:55.3]} 9... Nc7 {[%clk 0:02:53.9]} 10.
Qe2 {[%clk 0:02:54.8]} 10... e6 {[%clk 0:02:53.7]} 11. dxe6 {[%clk 0:02:53.9]}
11... Bxe6 {[%clk 0:02:48.9]} 12. Be3 {[%clk 0:02:38.3]} 12... Nc6 {[%clk
0:02:47.6]} 13. Rad1 {[%clk 0:02:36.6]} 13... Qe7 {[%clk 0:02:40.7]} 14. Bxe6
{[%clk 0:02:20.2]} 14... fxe6 {[%clk 0:02:38.5]} 15. Qc4 {[%clk 0:02:02]} 15...
Kh8 {[%clk 0:02:35]} 16. e5 {[%clk 0:01:58.8]} 16... Na5 {[%clk 0:02:15.9]} 17.
exd6 {[%clk 0:01:35.4]} 17... Nxc4 {[%clk 0:02:14.6]} 18. dxe7 {[%clk
0:01:35.3]} 18... Nxe3 {[%clk 0:02:10.5]} 19. exf8=Q+ {[%clk 0:01:35.7]} 19...
Rxf8 {[%clk 0:02:10.5]} 20. Rd7 {[%clk 0:01:35.3]} 20... Ncd5 {[%clk 0:02:08.8]}
21. Nxd5 {[%clk 0:01:32.8]} 21... Nxd5 {[%clk 0:02:00.4]} 22. c3 {[%clk
0:01:29.7]} 22... b5 {[%clk 0:01:42.2]} 23. Ng5 {[%clk 0:01:28]} 23... Nxf4
{[%clk 0:01:29.3]} 24. Nf7+ {[%clk 0:01:26.1]} 24... Rxf7 {[%clk 0:01:24.4]} 25.
Rxf7 {[%clk 0:01:22.6]} 25... Nd5 {[%clk 0:01:16.3]} 26. a5 {[%clk 0:01:19.3]}
26... h5 {[%clk 0:01:13.3]} 27. Ra7 {[%clk 0:01:18.5]} 27... b4 {[%clk
0:01:12.4]} 28. cxb4 {[%clk 0:01:16.8]} 28... cxb4 {[%clk 0:01:09.1]} 29. Rxa6
{[%clk 0:01:14.8]} 29... Bxb2 {[%clk 0:01:04.1]} 30. Rxe6 {[%clk 0:01:12.1]}
30... Bd4+ {[%clk 0:00:48.8]} 31. Kh1 {[%clk 0:01:10.9]} 31... b3 {[%clk
0:00:49.1]} 32. Rd6 {[%clk 0:01:09.3]} 32... Ne3 {[%clk 0:00:47.7]} 33. Rxd4
{[%clk 0:01:04.9]} 33... Nxf1 {[%clk 0:00:46.5]} 34. Rb4 {[%clk 0:01:05.4]}
34... Nd2 {[%clk 0:00:46]} 35. a6 {[%clk 0:01:05.5]} 1-0

[Event "Early-Titled-Tuesday-Blitz-October-03-2023"]
[Site "Chess.com"]
[Date "2023.10.03"]
[Round "2"]
[White "colegiodemadrid"]
[Black "JACK_BAU3R"]
[Result "1-0"]
[WhiteElo "2405"]
[BlackElo "1997"]
[TimeControl "180+1"]
[EndTime "8:15:48 PDT"]
[Termination "colegiodemadrid won on time"]

1. e4 {[%clk 0:03:00.9]} 1... d6 {[%clk 0:02:59.7]} 2. d4 {[%clk 0:02:58.9]}
2... Nf6 {[%clk 0:03:00.3]} 3. Nc3 {[%clk 0:02:57.9]} 3... e5 {[%clk 0:03:00.6]}
4. Nf3 {[%clk 0:02:56.1]} 4... exd4 {[%clk 0:03:00.5]} 5. Nxd4 {[%clk
0:02:55.6]} 5... Be7 {[%clk 0:03:01]} 6. g3 {[%clk 0:02:55.5]} 6... O-O {[%clk
0:03:01.6]} 7. Bg2 {[%clk 0:02:56]} 7... Re8 {[%clk 0:03:01.7]} 8. O-O {[%clk
0:02:56.3]} 8... a6 {[%clk 0:03:01.9]} 9. Re1 {[%clk 0:02:56.8]} 9... Nbd7
{[%clk 0:03:02.5]} 10. a4 {[%clk 0:02:56]} 10... Bf8 {[%clk 0:02:56.4]} 11. h3
{[%clk 0:02:55.3]} 11... Nc5 {[%clk 0:02:53.4]} 12. Kh2 {[%clk 0:02:54.9]} 12...
Qd7 {[%clk 0:02:42.5]} 13. Bg5 {[%clk 0:02:48]} 13... Nfxe4 {[%clk 0:02:40.7]}
14. Nxe4 {[%clk 0:02:43.8]} 14... Nxe4 {[%clk 0:02:38.3]} 15. Rxe4 {[%clk
0:02:36.6]} 15... Rxe4 {[%clk 0:02:37.2]} 16. Bxe4 {[%clk 0:02:37.5]} 16...
Qxh3+ {[%clk 0:02:36.3]} 17. Kg1 {[%clk 0:02:37.8]} 17... h5 {[%clk 0:01:46.2]}
18. Bg2 {[%clk 0:02:34]} 18... Qd7 {[%clk 0:01:46.1]} 19. Qxh5 {[%clk
0:02:33.1]} 19... g6 {[%clk 0:01:44.3]} 20. Qh4 {[%clk 0:02:30.2]} 20... c5
{[%clk 0:01:35.7]} 21. Bf6 {[%clk 0:02:22]} 21... Bg7 {[%clk 0:01:35.1]} 22. Nf3
{[%clk 0:02:20.8]} 22... Qf5 {[%clk 0:01:27.3]} 23. Bxg7 {[%clk 0:02:19.9]}
23... Kxg7 {[%clk 0:01:27.7]} 24. Ng5 {[%clk 0:02:20]} 24... Be6 {[%clk
0:00:57.7]} 25. Bh3 {[%clk 0:02:13.8]} 25... Qe5 {[%clk 0:00:17.3]} 26. Nxe6+
{[%clk 0:01:57.9]} 26... fxe6 {[%clk 0:00:15.7]} 27. Qe7+ {[%clk 0:01:58.4]}
27... Kh6 {[%clk 0:00:14.7]} 28. Qxe6 {[%clk 0:01:57.5]} 28... Qxb2 {[%clk
0:00:13.8]} 29. Re1 {[%clk 0:01:53.5]} 29... Qxc2 {[%clk 0:00:11.8]} 30. Qxd6
{[%clk 0:01:52.7]} 30... Qxa4 {[%clk 0:00:08.3]} 31. Qf4+ {[%clk 0:01:51.9]}
31... Qxf4 {[%clk 0:00:08.1]} 32. gxf4 {[%clk 0:01:51.4]} 32... b5 {[%clk
0:00:03.9]} 33. Re6 {[%clk 0:01:48.3]} 33... Kg7 {[%clk 0:00:01.8]} 34. Bg2
{[%clk 0:01:45.2]} 34... Ra7 {[%clk 0:00:02.2]} 35. Be4 {[%clk 0:01:43.7]} 1-0

[Event "Early-Titled-Tuesday-Blitz-October-03-2023"]
[Site "Chess.com"]
[Date "2023.10.03"]
[Round "2"]
[White "Caterpiller35"]
[Black "Mbneu"]
[Result "1-0"]
[WhiteElo "2475"]
[BlackElo "2219"]
[TimeControl "180+1"]
[EndTime "8:15:49 PDT"]
[Termination "Caterpiller35 won by resignation"]

1. d4 {[%clk 0:03:00.1]} 1... Nf6 {[%clk 0:02:56]} 2. Bg5 {[%clk 0:02:59.9]}
2... Ne4 {[%clk 0:02:55]} 3. Bf4 {[%clk 0:03:00.2]} 3... g5 {[%clk 0:02:54.6]}
4. Bc1 {[%clk 0:03:00.1]} 4... c5 {[%clk 0:02:53.5]} 5. f3 {[%clk 0:02:59.9]}
5... Nf6 {[%clk 0:02:45.3]} 6. dxc5 {[%clk 0:02:59.8]} 6... Qa5+ {[%clk
0:02:42.9]} 7. Nc3 {[%clk 0:02:59.7]} 7... Qxc5 {[%clk 0:02:42.8]} 8. e4 {[%clk
0:02:59.8]} 8... h6 {[%clk 0:02:32]} 9. Qe2 {[%clk 0:02:52.1]} 9... b6 {[%clk
0:02:30.9]} 10. Be3 {[%clk 0:02:51.7]} 10... Qa5 {[%clk 0:02:30.5]} 11. Qd2
{[%clk 0:02:51.8]} 11... Bg7 {[%clk 0:02:25.1]} 12. Bc4 {[%clk 0:02:51.5]} 12...
Ba6 {[%clk 0:02:14.2]} 13. Bb3 {[%clk 0:02:45.4]} 13... O-O {[%clk 0:02:08.2]}
14. h4 {[%clk 0:02:45.2]} 14... g4 {[%clk 0:01:54.4]} 15. Bxh6 {[%clk
0:02:40.9]} 15... Bxh6 {[%clk 0:01:53.6]} 16. Qxh6 {[%clk 0:02:40.8]} 16... Qh5
{[%clk 0:01:30.7]} 17. Qxh5 {[%clk 0:02:35.2]} 17... Nxh5 {[%clk 0:01:30.8]} 18.
fxg4 {[%clk 0:02:36.1]} 18... Nf4 {[%clk 0:01:25.9]} 19. Kf2 {[%clk 0:02:31.7]}
19... Nc6 {[%clk 0:01:23.2]} 20. Nh3 {[%clk 0:02:30.7]} 20... Ng6 {[%clk
0:01:21.4]} 21. Rad1 {[%clk 0:02:20.8]} 21... Nge5 {[%clk 0:01:19.9]} 22. g5
{[%clk 0:02:20.9]} 22... d6 {[%clk 0:01:17.7]} 23. Nd5 {[%clk 0:02:19.6]} 23...
Rac8 {[%clk 0:01:14.9]} 24. Nhf4 {[%clk 0:02:15.8]} 24... Kh7 {[%clk 0:01:04.8]}
25. h5 {[%clk 0:02:13.6]} 25... f5 {[%clk 0:00:50.6]} 26. gxf6 {[%clk
0:02:03.8]} 26... Ng4+ {[%clk 0:00:46.6]} 27. Kg3 {[%clk 0:01:59]} 27... Nxf6
{[%clk 0:00:45.7]} 28. Nxf6+ {[%clk 0:01:53.2]} 28... Rxf6 {[%clk 0:00:45]} 29.
Nd5 {[%clk 0:01:53.1]} 29... Rg8+ {[%clk 0:00:40.1]} 30. Kh4 {[%clk 0:01:52.5]}
30... Rf2 {[%clk 0:00:35.8]} 31. g4 {[%clk 0:01:51]} 31... Be2 {[%clk
0:00:34.1]} 32. Rdg1 {[%clk 0:01:48]} 32... Ne5 {[%clk 0:00:32.9]} 33. Nxe7
{[%clk 0:01:36.1]} 33... Bxg4 {[%clk 0:00:20.8]} 34. Bxg8+ {[%clk 0:01:32.6]}
1-0